{"text_format":"1","workbook":"xlsx","n_sheets":5,"sheets":[" Boletín de Inscripción "," Derechos de Inscripción "," Datos de Organizadores ","Exportacion","Exp_Historicos"],"not_rendered":{"charts":0,"images":1,"macros":1,"external_links":0,"defined_names":211,"comments":0,"pivot_tables":0},"unopened":[],"bounds":{"document_bytes":16777216,"sheet_cells":100000,"rows_first":2000,"rows_last":500,"rows_between":2000,"halvings":0,"cell_chars":16384,"cell_head_chars":4096},"cells_cut":0,"cells_raw":0,"read":"whole","date_system":"1900"}

{"sheet":" Boletín de Inscripción ","index":0,"n_rows":154,"n_cols":35,"rows_kept":154,"cut":false,"hidden":false,"merged":[[36,2,47,2],[45,3,45,7],[47,3,47,7],[47,8,47,12],[45,8,45,12],[45,26,45,29],[45,13,45,20],[63,13,63,20],[51,16,51,20],[49,11,49,20],[53,26,53,29],[45,21,45,25],[51,21,51,32],[47,21,47,32],[49,21,49,32],[55,13,55,20],[53,13,53,20],[63,8,63,12],[59,3,59,15],[45,30,45,32],[53,30,53,32],[57,21,57,32],[57,11,57,20],[55,8,55,12],[133,23,133,32],[131,12,131,22],[131,2,131,11],[128,2,128,11],[22,26,24,28],[22,17,24,25],[22,2,23,15],[43,3,43,15],[43,21,43,32],[25,26,32,28],[29,21,32,25],[38,21,38,32],[41,16,41,32],[25,21,28,25],[124,23,124,32],[61,3,61,7],[101,3,102,6],[99,8,99,15],[70,2,70,5],[61,8,61,12],[118,2,118,32],[122,2,122,11],[124,2,124,11],[43,16,43,20],[124,12,124,22],[99,2,99,3],[102,17,103,31],[103,3,103,6],[122,23,122,32],[122,12,122,22],[120,12,120,22],[120,23,120,32],[120,2,120,11],[99,4,99,5],[100,16,100,19],[100,20,100,32],[153,2,153,9],[153,10,153,21],[148,2,149,32],[153,22,153,32],[150,2,152,32],[126,12,126,22],[128,23,128,32],[126,23,126,32],[126,2,126,11],[137,2,137,11],[137,12,137,22],[131,23,131,32],[133,2,133,11],[135,23,135,32],[135,2,135,11],[135,12,135,22],[133,12,133,22],[139,3,145,31],[138,2,138,32],[137,23,137,32],[128,12,128,22],[129,2,129,11],[129,12,129,22],[129,23,129,32],[0,1,0,33],[48,2,55,2],[47,13,47,20],[16,2,16,32],[6,1,6,33],[24,2,25,15],[18,2,18,15],[8,1,9,14],[8,15,9,33],[18,17,18,32],[12,10,14,32],[34,2,34,32],[25,17,28,20],[29,17,32,20],[26,2,27,15],[28,2,29,15],[25,29,32,32],[19,2,20,15],[19,17,20,32],[22,29,24,32],[30,2,32,15],[41,3,41,15],[38,3,38,10],[38,11,38,20],[51,3,51,15],[49,3,49,10],[53,3,53,7],[53,8,53,12],[59,21,59,32],[55,21,55,32],[61,26,61,29],[55,3,55,7],[61,30,61,32],[57,3,57,10],[59,16,59,20],[53,21,53,25],[63,3,63,7],[67,8,67,15],[68,2,69,7],[67,2,67,7],[70,6,70,10],[56,2,63,2],[73,2,73,5],[71,11,72,15],[65,2,65,32],[61,13,61,20],[61,21,61,25],[67,16,67,32],[68,16,70,32],[68,8,69,15],[70,11,70,15],[63,21,63,32],[71,16,71,32],[73,6,73,10],[71,2,72,5],[71,6,72,10],[72,16,74,32],[74,2,75,5],[74,6,75,10],[73,11,75,15],[76,2,76,5],[76,6,76,10],[79,2,83,32],[88,2,88,32],[77,2,78,5],[78,13,78,15],[78,11,78,12],[76,11,77,15],[86,16,86,32],[75,16,75,32],[97,28,97,31],[96,4,96,15],[98,4,98,15],[97,4,97,15],[90,9,90,15],[91,11,91,15],[93,11,93,15],[92,3,93,8],[96,23,96,25],[95,28,95,31],[90,16,90,32],[94,28,94,31],[91,17,91,26],[96,28,96,31],[94,2,94,15],[93,28,93,31],[95,4,95,15],[91,28,91,31],[90,2,90,8],[91,3,91,8],[86,2,86,15],[76,16,78,32],[77,6,78,10]]}
[]
[]
[null,null,"1 - ","Seleccione el rallye en la lista desplegable."]
[null,null,"2 - ","Actualice, si es necesario, los importes de los derechos de inscripción en la hoja \"Derechos de Inscripción\" (ver reglamento particular)."]
[null,null,"3 - ","Rellene el Boletín de Inscripción, guárdelo en su ordenador y envíelo al Organizador (por correo electrónico). "]
[null,null,"4 - ","Los campos con fondo amarillo SON OBLIGATORIOS, no será aceptada la inscripción si falta alguno de dichos campos obligatorios."]
[null,"Para rallyes posteriores repita los pasos 1 y 2 y modifique sólo aquellos datos personales o del vehículo que necesite"]
[]
[null,{"$f":"IF(PENDIENTES=0,\"Datos obligatorios OK\",\"Datos obligatorios INCOMPLETOS\")","v":"Datos obligatorios INCOMPLETOS"}]
[]
[]
[]
[null,null,null,null,null,null,null,null,{"$f":"IF(Vehiculo_Categoria=\"Categoría 1\",\"OK\",IF(Vehiculo_Categoria=\"Categoría 2\",\"OK\",IF(Vehiculo_Categoria=\"Categoría 3\",\"OK\",IF(Vehiculo_Categoria=\"Categoría 4\",\"OK\",IF(Vehiculo_Categoria=\"Categoría 5-J1\",\"OK\",IF(Vehiculo_Categoria=\"Categoría 5-J2\",\"OK\",IF(Vehiculo_Categoria=\"Categoría 6\",\"OK\",IF(Vehiculo_Categoria=\"Categoría 7\",\"OK\",\"NOK\"))))))))","v":"NOK"},null,"Campeonato de España de Rallyes para Vehículos Históricos 2018\nVelocidad / Regularidad"]
[null,null,null,null,null,null,null,null,{"$f":"IF(Campeonato=1,\"NO\",IF(Campeonato=5,\"NO\",\"SI\"))","v":"NO"}]
[]
[]
[null,null,"SOLICITUD de INSCRIPCIÓN"]
[]
[null,null,"Nombre de la prueba",null,null,null,null,null,null,null,null,null,null,null,null,null,null,"Certamen (se rellena automáticamente)"]
[null,null,{"$f":"IF(Blanco=TRUE,\"\",' Derechos de Inscripción '!B18)","v":"IV Rallye Rías Altas Histórico"},null,null,null,null,null,null,null,null,null,null,null,null,null,null,{"$f":"IF(Campeonato>6,\"\",IF(Campeonato<5,\"VELOCIDAD\",\"REGULARIDAD\"))","v":"VELOCIDAD"}]
[null,3]
[]
[null,null,{"$f":"IF(Blanco=TRUE,\"\",' Derechos de Inscripción '!D21)","v":"CLUB RALLYE RIAS ALTAS"},null,null,null,null,null,null,null,null,null,null,null,null,null,null,"Fecha y hora de recepción",null,null,null,null,null,null,null,null,"Nº Entrada",null,null,"Nº Rallye"]
[]
[null,null,{"$f":"IF(Blanco=TRUE,\"\",' Derechos de Inscripción '!D22)","v":"C/ Parroquia de Guísamo, Parcela A2, Nave 7"}]
[null,null,null,null,null,null,null,null,null,null,null,null,null,null,null,null,null,"Fecha:"]
[null,null,{"$f":"IF(Blanco=TRUE,\"\",IF(TEXT(' Derechos de Inscripción '!D23,\"00000\")=\" \",\"\",TEXT(' Derechos de Inscripción '!D23,\"00000\")&\"-\"&' Derechos de Inscripción '!F23&\" \"&' Derechos de Inscripción '!D24))","v":"15165-BERGONDO (A CORUÑA)"}]
[]
[null,null,{"$f":"IF(Blanco=TRUE,\"\",IF(' Derechos de Inscripción '!D25=\"\",IF(' Derechos de Inscripción '!F25=\"\",\"\",\"FAX: \"&' Derechos de Inscripción '!F25),IF(' Derechos de Inscripción '!F25=\"\",\"TLF: \"&' Derechos de Inscripción '!D25,\"TLF: \"&' Derechos de Inscripción '!D25&\" - FAX: \"&' Derechos de Inscripción '!F25)))","v":"TLF: 676 857 909 - FAX: 0"}]
[null,null,null,null,null,null,null,null,null,null,null,null,null,null,null,null,null,"Hora:"]
[null,null,{"$f":"IF(Blanco=TRUE,\"\",\"e_mail: \" & ' Derechos de Inscripción '!H25)","v":"e_mail: inscripciones@rallyeriasaltas.com"}]
[]
[]
[]
[null,null,"DATOS PERSONALES"]
[]
[null,null,"COMPETIDOR","INDIVIDUAL"]
[null,null,null,"1º Apellido",null,null,null,null,null,null,null,"2º Apellido",null,null,null,null,null,null,null,null,null,"Nombre:"]
[]
[null,null,null,"COLECTIVO"]
[null,null,null,"Denominación:",null,null,null,null,null,null,null,null,null,null,null,null,"Representante:"]
[]
[null,null,null,"Dirección",null,null,null,null,null,null,null,null,null,null,null,null,"C.P.:",null,null,null,null,"Población:"]
[]
[null,null,null,"Provincia:",null,null,null,null,"Comunidad Autónoma:",null,null,null,null,"País:",null,null,null,null,null,null,null,"NIF / CIF:",null,null,null,null,"Licencia:",null,null,null,"Copia:",null,null,null,{"$f":"VLOOKUP(Indice_Pais_Concursante,Tabla_Paises,5)","v":"ESP "}]
[null,null,null,null,null,null,null,null,{"$f":"VLOOKUP(Indice_CCAA_Concursante,Tabla_Autonomias,3)","v":"Andalucía"},null,null,null,null,{"$f":"VLOOKUP(Indice_Pais_Concursante,Tabla_Paises,2)","v":"España"},null,null,null,null,null,null,null,null,null,null,null,null,null,null,null,null,null,null,null,null,{"$f":"VLOOKUP(Indice_CCAA_Concursante,Tabla_Autonomias,2)","v":"AN"}]
[null,null,null,"Teléfono MOVIL:",null,null,null,null,"Teléfono FIJO:",null,null,null,null,"FAX:",null,null,null,null,null,null,null,"e-mail:"]
[]
[null,null,"PILOTO","1º Apellido",null,null,null,null,null,null,null,"2º Apellido",null,null,null,null,null,null,null,null,null,"Nombre:"]
[]
[null,null,null,"Dirección",null,null,null,null,null,null,null,null,null,null,null,null,"C.P.:",null,null,null,null,"Población:"]
[]
[null,null,null,"Provincia:",null,null,null,null,"Comunidad Autónoma:",null,null,null,null,"País:",null,null,null,null,null,null,null,"NIF / CIF:",null,null,null,null,"Licencia:",null,null,null,null,null,null,null,{"$f":"VLOOKUP(Indice_Pais_Piloto,Tabla_Paises,5)","v":"ESP "}]
[null,null,null,null,null,null,null,null,{"$f":"VLOOKUP(Indice_CCAA_Piloto,TABLA_AUTONOMIAS_PILOTO,3)","v":"Andalucía"},null,null,null,null,{"$f":"VLOOKUP(Indice_Pais_Piloto,Tabla_Paises,2)","v":"España"},null,null,null,null,null,null,null,null,null,null,null,null,null,null,null,null,null,null,null,null,{"$f":"VLOOKUP(Indice_CCAA_Piloto,TABLA_AUTONOMIAS_PILOTO,2)","v":"AN"}]
[null,null,null,"Teléfono MOVIL:",null,null,null,null,"Teléfono FIJO:",null,null,null,null,"FAX:",null,null,null,null,null,null,null,"e-mail:"]
[]
[null,null,"COPILOTO","1º Apellido",null,null,null,null,null,null,null,"2º Apellido",null,null,null,null,null,null,null,null,null,"Nombre:"]
[]
[null,null,null,"Dirección",null,null,null,null,null,null,null,null,null,null,null,null,"C.P.:",null,null,null,null,"Población:"]
[]
[null,null,null,"Provincia:",null,null,null,null,"Comunidad Autónoma:",null,null,null,null,"País:",null,null,null,null,null,null,null,"NIF / CIF:",null,null,null,null,"Licencia:",null,null,null,null,null,null,null,{"$f":"VLOOKUP(Indice_Pais_Copiloto,Tabla_Paises,5)","v":"ESP "}]
[null,null,null,null,null,null,null,null,{"$f":"VLOOKUP(Indice_CCAA_Copiloto,TABLA_AUTONOMIAS_coPILOTO,3)","v":"Andalucía"},null,null,null,null,{"$f":"VLOOKUP(Indice_Pais_Copiloto,Tabla_Paises,2)","v":"España"},null,null,null,null,null,null,null,null,null,null,null,null,null,null,null,null,null,null,null,null,{"$f":"VLOOKUP(Indice_CCAA_Copiloto,TABLA_AUTONOMIAS_coPILOTO,2)","v":"AN"}]
[null,null,null,"Teléfono MOVIL:",null,null,null,null,"Teléfono FIJO:",null,null,null,null,"FAX:",null,null,null,null,null,null,null,"e-mail:"]
[]
[]
[null,null,"DATOS del VEHÍCULO"]
[]
[null,null,"Marca:",null,null,null,null,null,"Modelo (según Ficha Homologación):",null,null,null,null,null,null,null,"Campeonato o Trofeo al que opta"]
[null,null,null,null,null,null,null,null,null,null,null,null,null,null,null,null,{"$f":"' Datos de Organizadores '!C142","v":"Campeonato de España de Históricos Pre 81"}]
[]
[null,null,"Cilindrada:",null,null,null,"Turboalimentado:",null,null,null,null,"Cilindrada corregida:"]
[null,null,null,null,null,null,null,null,null,null,null,{"$f":"IF(Turbo=2,C72,IF(Turbo_correcto=0,C72*1.7,C72*1.4))","v":0},null,null,null,null,"Grupo"]
[null,null,null,null,null,null,null,null,null,null,null,null,null,null,null,null,{"$f":"' Datos de Organizadores '!C18","v":"Seleccionar el tipo de vehículo de la lista desplegable"}]
[null,null,"Matrícula:",null,null,null,"Año homologación:"]
[]
[]
[null,null,"Ficha Homologación:",null,null,null,"Pasaporte FIA/RFEdeA:",null,null,null,null,"Aprobación Grupo              Trabajo Históricos"]
[]
[]
[null,null,"NO SERAN ACEPTADAS las inscripciones a las que le falte alguno de los datos anteriores.\nEs OBLIGATORIO adjuntar al Boletín la primera página de uno de los siguientes pasaportes (en caso de requerirse):\n Historic Technical Passport FIA (HTP), Pasaporte Técnico de Vehículo Clásico RFEdeA (PTVC), Historic Regularity Run Car Pass FIA (HRCP) o Pasaporte de Clásicos de Regularidad RFEdeA (PCR)."]
[]
[]
[]
[]
[]
[null,null,"  Nombre y apellidos del Piloto:",null,null,null,null,null,null,null,null,null,null,null,null,null,"  Nombre y apellidos del Copiloto:"]
[null,null,{"$f":"V50&\" \"&D50&\" \"&L50","v":"  "},null,null,null,null,null,null,null,null,null,null,null,null,null,{"$f":"V58&\" \"&D58&\" \"&L58","v":"  "}]
[]
[null,null,"DERECHOS de INSCRIPCIÓN"]
[]
[null,null,"DERECHOS de INSCRIPCIÓN",null,null,null,null,null,null,"OTROS DERECHOS",null,null,null,null,null,null,"IMPORTE de DERECHOS a PAGAR"]
[null,null,null,"Con publicidad facultativa",null,null,null,null,null,null,null,"Placa de Auxiliar",null,null,null,null,null,"Concepto",null,null,null,null,null,null,null,null,null,null,"Importe"]
[null,null,null,"Sin publicidad facultativa"]
[null,null,null,null,null,null,null,null,null,null,null,null,null,null,null,null,null,"- Derechos de Inscripción (IVA incluido)",null,null,null,null,null,null,null,null,null,null,{"$f":"IF(Campeonato=7,0,IF(OR(Campeonato=1,Campeonato=2,Campeonato=3,Campeonato=4),IF(Publicidad=1,' Derechos de Inscripción '!J29,' Derechos de Inscripción '!M29),IF((Campeonato=5),IF(Publicidad=1,' Derechos de Inscripción '!J30,' Derechos de Inscripción '!M30),IF(Publicidad=1,' Derechos de Inscripción '!J31,' Derechos de Inscripción '!M31))))","v":550}]
[null,null,"   Datos para expedición de la factura de los derechos:",null,null,null,null,null,null,null,null,null,null,null,null,null,null,"- Placa de Auxiliar",null,null,null,null,null,null,null,null,null,null,{"$f":"IF(Auxiliar=TRUE,' Derechos de Inscripción '!J32,0)","v":0}]
[null,null,"  Nombre:"]
[null,null,"  NIF / CIF:",null,null,null,null,null,null,null,null,null,null,null,null,null,null,null,null,null,null,null,null,null,null,null,null,null,{"$f":"IF(IVA=FALSE,0,AC96*X97)","v":0}]
[null,null,"  Dirección:",null,null,null,null,null,null,null,null,null,null,null,null,null,null,null,null,null,null,"TOTAL DERECHOS",null,null,null,null,null,null,{"$f":"IF(Blanco=TRUE,\"\",SUM(AC94:AF95))","v":550}]
[null,null,"  Localidad:"]
[null,null,"  C. Postal:",null,null,null,"Provincia:"]
[null,null,"   FORMA DE PAGO",null,null,null,null,null,null,null,null,null,null,null,null,null,"Nº cuenta ",null,null,null,{"$f":"IF(Blanco=TRUE,\"\",' Derechos de Inscripción '!B18)","v":"IV Rallye Rías Altas Histórico"}]
[null,null,null,"En Efectivo"]
[null,null,null,null,null,null,null,null,null,null,null,null,null,null,null,null,null,{"$f":"' Derechos de Inscripción '!H36","v":"ES43 0182 4655 7702 0158 5742"}]
[null,null,null,"Por Transferencia"]
[]
[]
[]
[]
[]
[]
[]
[]
[]
[]
[]
[]
[]
[]
[null,null,"ASISTENCIAS"]
[]
[null,null,"ASISTENCIA 1",null,null,null,null,null,null,null,null,null,"ASISTENCIA 2",null,null,null,null,null,null,null,null,null,null,"JEFE de EQUIPO o AUXILIAR"]
[null,null,"Nombre:",null,null,null,null,null,null,null,null,null,"Nombre:",null,null,null,null,null,null,null,null,null,null,"Nombre:"]
[]
[null,null,"Apellidos:",null,null,null,null,null,null,null,null,null,"Apellidos:",null,null,null,null,null,null,null,null,null,null,"Apellidos:"]
[]
[null,null,"NIF:",null,null,null,null,null,null,null,null,null,"NIF:",null,null,null,null,null,null,null,null,null,null,"NIF:"]
[]
[null,null,"Licencia:",null,null,null,null,null,null,null,null,null,"Licencia:",null,null,null,null,null,null,null,null,null,null,"Licencia:"]
[]
[null,null,"Vehículo ASISTENCIA 1",null,null,null,null,null,null,null,null,null,"Vehículo ASISTENCIA 2",null,null,null,null,null,null,null,null,null,null,"Vehículo JEFE de EQUIPO o AUXILIAR"]
[null,null,"Marca:",null,null,null,null,null,null,null,null,null,"Marca:",null,null,null,null,null,null,null,null,null,null,"Marca:"]
[]
[null,null,"Modelo:",null,null,null,null,null,null,null,null,null,"Modelo:",null,null,null,null,null,null,null,null,null,null,"Modelo:"]
[]
[null,null,"Matrícula:",null,null,null,null,null,null,null,null,null,"Matrícula:",null,null,null,null,null,null,null,null,null,null,"Matrícula:"]
[]
[null,null,"Medidas:",null,null,null,null,null,null,null,null,null,"Medidas:",null,null,null,null,null,null,null,null,null,null,"Medidas:"]
[]
[null,null,"  Relación, si procede, de los equipos con los que desea compartir asistencia o que la ubicación sea contigua:"]
[]
[]
[]
[]
[]
[]
[]
[]
[]
[null,null,{"$f":"\"El abajo firmante se hace responsable de los datos que figuran en este documento y declara conocer los reglamentos por los que se rige la prueba los cuales deberá respetar, y solicita su inscripcion en el \" & C20 & \".\"","v":"El abajo firmante se hace responsable de los datos que figuran en este documento y declara conocer los reglamentos por los que se rige la prueba los cuales deberá respetar, y solicita su inscripcion en el IV Rallye Rías Altas Histórico."}]
[]
[null,null,{"$f":"\"De acuerdo con lo establecido en la Ley Orgánica 15/1999 les informamos de que sus datos personales forman parte de un fichero cuyo responsable es \" & C23 & \", con domicilio en \" & C25 &  \", \" & C27 &  \". La finalidad de este fichero es llevar a cabo la gestión y control de los participantes en el \" & C20 & \". Si lo desean podrán ejercitar los derechos de acceso, rectificación, cancelación y oposición, dirigiéndose por escrito a la dirección señalada y adjuntando una fotocopia de su DNI.\"","v":"De acuerdo con lo establecido en la Ley Orgánica 15/1999 les informamos de que sus datos personales forman parte de un fichero cuyo responsable es CLUB RALLYE RIAS ALTAS, con domicilio en C/ Parroquia de Guísamo, Parcela A2, Nave 7, 15165-BERGONDO (A CORUÑA). La finalidad de este fichero es llevar a cabo la gestión y control de los participantes en el IV Rallye Rías Altas Histórico. Si lo desean podrán ejercitar los derechos de acceso, rectificación, cancelación y oposición, dirigiéndose por escrito a la dirección señalada y adjuntando una fotocopia de su DNI."},null,null,null,null,null,null,null,null,null,null,null,null,null,null,null,null,null,null,null,null,null,null,null,null,null,null,null,null,null,null," "]
[]
[]
[null,null,"El Concursante",null,null,null,null,null,null,null,"El 1er. Conductor",null,null,null,null,null,null,null,null,null,null,null,"El Copiloto"]

{"sheet":" Derechos de Inscripción ","index":1,"n_rows":113,"n_cols":13,"rows_kept":113,"cut":false,"hidden":false,"merged":[[1,4,2,14],[2,1,2,2],[4,1,4,14],[8,3,9,13],[8,2,9,2],[6,3,7,13],[6,2,7,2],[10,3,11,13],[10,2,11,2],[16,2,16,13],[26,2,26,13],[19,2,19,13],[24,7,24,14],[13,2,13,13],[17,1,17,14],[20,1,24,1],[20,3,20,14],[21,3,21,14],[22,5,22,14],[23,3,23,14],[41,1,41,6],[33,9,33,11],[27,2,27,8],[28,2,28,8],[31,2,31,8],[32,2,32,8],[33,2,33,8],[29,2,29,8],[29,9,29,11],[41,7,41,14],[29,12,29,14],[35,1,35,6],[31,9,31,11],[32,9,32,11],[27,1,33,1],[28,12,28,14],[31,12,31,14],[32,12,32,14],[28,9,28,11],[35,7,35,14],[27,12,27,14],[27,9,27,11],[33,12,33,14],[30,2,30,8],[30,9,30,11],[30,12,30,14]]}
[]
[null,null,null,null,"Campeonato de España de\nRallyes para Vehículos Históricos"]
[]
[]
[null,"DATOS DE LOS DERECHOS DE INSCRIPCIÓN"]
[]
[null,null,1,"Seleccione la prueba correspondiente en la lista desplegable, los datos del nombre de la prueba y del Club Organizador se actualizarán automáticamente."]
[]
[null,null,2,"Modifique los importes de los derechos de inscripción y el resto de derechos de acuerdo a lo dispuesto en el Reglamento Particular de la prueba cuya inscripción se desea rellenar."]
[]
[null,null,3,"Pulse sobre el botón \"Rellenar el Boletín de Inscripción\" y, una vez actualizados sus datos imprima o guarde la Solicitud de Inscripción según desee enviarla por Fax o Correo Electrónico."]
[]
[]
[null,null,"Guarde esta solicitud de inscripción una vez rellenada, pues la misma le servirá para cualquier rallye del Campeonato de España 2007 simplemente con seleccionar la prueba en cuestión y evitando el tener que rellenar nuevamente aquellos datos personales o del vehículo que no hayan sufrido modificaciones de una prueba a otra."]
[]
[null,null,5]
[null,null,"Nombre de la Prueba"]
[null,{"$f":"VLOOKUP(C16,' Datos de Organizadores '!A3:K11,2)","v":"IV Rallye Rías Altas Histórico"}]
[]
[null,null,"DATOS DEL ORGANIZADOR"]
[null,"Organizador","Club",{"$f":"VLOOKUP($C$16,' Datos de Organizadores '!$A$3:$K$11,3)","v":"CLUB RALLYE RIAS ALTAS"}]
[null,null,"Dirección",{"$f":"VLOOKUP($C$16,' Datos de Organizadores '!$A$3:$K$11,4)","v":"C/ Parroquia de Guísamo, Parcela A2, Nave 7"}]
[null,null,"C. Postal",{"$f":"VLOOKUP($C$16,' Datos de Organizadores '!$A$3:$K$11,5)","v":"15165"},"Localidad",{"$f":"VLOOKUP($C$16,' Datos de Organizadores '!$A$3:$K$11,6)","v":"BERGONDO"}]
[null,null,"Provincia",{"$f":"IF(VLOOKUP($C$16,' Datos de Organizadores '!$A$3:$K$11,7)<>0,\"(\"&(VLOOKUP($C$16,' Datos de Organizadores '!$A$3:$K$11,7)&\")\"),\"\")","v":"(A CORUÑA)"}]
[null,null,"Teléfono",{"$f":"VLOOKUP($C$16,' Datos de Organizadores '!$A$3:$K$11,8)","v":"676 857 909"},"FAX",{"$f":"VLOOKUP($C$16,' Datos de Organizadores '!$A$3:$K$11,9)","v":0},"e-mail",{"$f":"VLOOKUP($C$16,' Datos de Organizadores '!$A$3:$K$11,10)","v":"inscripciones@rallyeriasaltas.com"}]
[]
[null,null,"IMPORTES DE LOS DERECHOS"]
[null,"Derechos","Conceptos",null,null,null,null,null,null,"Con publicidad",null,null,"Sin publicidad"]
[null,null,"Derechos de Inscripción (VELOCIDAD)",null,null,null,null,null,null,550,null,null,{"$f":"2*J29","v":1100}]
[null,null,"Derechos de Inscripción (REGULARIDAD SPORT)",null,null,null,null,null,null,350,null,null,{"$f":"2*J30","v":700}]
[null,null,"Derechos de Inscripción (REGULARIDAD)",null,null,null,null,null,null,300,null,null,{"$f":"2*J31","v":600}]
[null,null,"PLACAS DE JEFE DE EQUIPO O VEHÍCULO AUXILIAR ASISTENCIA",null,null,null,null,null,null,150]
[null,null,"INSCRIPCION AL SHAKEDONW",null,null,null,null,null,null,0]
[null,null,"PLACAS DE OUVREUR",null,null,null,null,null,null,0]
[]
[null,"CUENTA PARA TRANSFERENCIA INSCRIPCIONES (comprobar que se ha seleccionado el organizador correcto)",null,null,null,null,null,{"$f":"VLOOKUP($C$16,' Datos de Organizadores '!A3:K11,11)","v":"ES43 0182 4655 7702 0158 5742"}]
[]
[]
[]
[]
[null,null,2,2,2]
[null,"CUENTA PARA TRANSFERENCIA INSCRIPCIONES"]
[]
[]
[]
[null,null,62,62,62,2,2]
[]
[]
[]
[]
[]
[]
[]
[]
[]
[]
[]
[]
[]
[]
[]
[]
[]
[]
[]
[]
[]
[]
[]
[]
[]
[]
[]
[]
[]
[]
[]
[]
[]
[]
[]
[]
[]
[]
[]
[]
[]
[]
[]
[]
[]
[]
[]
[]
[]
[]
[]
[]
[]
[]
[]
[]
[]
[]
[]
[]
[]
[]
[]
[]
[]
[null,null,null,null,null,null,null,null,62]
[null,null,null,null,null,null,null,null,62]

{"sheet":" Datos de Organizadores ","index":2,"n_rows":342,"n_cols":21,"rows_kept":342,"cut":false,"hidden":true,"merged":[[0,11,0,12],[108,5,108,7],[108,8,108,10],[108,11,108,13],[0,13,0,14],[140,0,140,2],[0,0,0,10],[53,0,53,2],[31,0,31,2],[42,0,42,2],[75,0,75,2],[86,0,86,2],[64,0,64,2]]}
["DATOS DE ORGANIZADORES",null,null,null,null,null,null,null,null,null,null,"Derechos de inscripción",null,"Shakedown",null,"Ouvreur","Auxiliar"]
["Nº","Nombre de la Prueba","Club Organizador","Dirección","C.P.","Localidad","Provincia","Teléfono","Fax","E_Mail","Cuenta de abono inscripciones","Con publicidad","Sin publicidad","Con publicidad","Sin publicidad"]
[1,"66 Rally Costa Brava Histórico","CLUB RALLYCLASSICS","Plaza Paisos Catalans, 49","08410","VILANOVA DEL VALLES","BARCELONA","938 458 630","938 458 544","rallyclassics@rallyclassics.org","ES48 0182 9764 2302 0000 1717",470,940,200,400,300,150,{"$f":"' Derechos de Inscripción '!C16","v":5},"Numrallye"]
[2,"X Rally de Asturias Histórico","ESCUDERIA PRAVIA AUTOCOMPETICIÓN","Avda. del Valle, 6-6º C","33120","PRAVIA","ASTURIAS","651 834 610","902 009 203","inscripciones.rallydeasturias@gmail.com","ES71 3059 0021 4828 4003 5329",470,940,200,400,300,150,1,"Campeonato",{"$f":"IF(Blanco=TRUE,FALSE,IF(Trofeo1=TRUE,#N/A,FALSE))","v":false}]
[3,"42 Rallye de Avilés Histórico","ESCUDERIA AVILESINA","La Cámara, 49 Entlo","33400","AVILÉS","ASTURIAS","985 520 090","985 520 546","rallye@rallyeaviles.es","ES42 3059 0024 8322 7927 5628",470,940,200,400,300,150,1,"Publicidad",0,{"$f":"IF(Blanco=TRUE,\"¡¡¡ ATENCIÓN !!! DATOS OCULTOS\",\"ESTADO NORMAL (Todos los datos visibles)\")","v":"ESTADO NORMAL (Todos los datos visibles)"}]
[4,"VI Rallye Extremadura Histórico","VOLANTIA RACING CLUB","Manrique de Lara, 8, Planta baja, Puerta dcha.","10450","JARANDILLA DE LA VERA","CÁCERES","625 503 565","924 371 901","info@volantia.es","ES39 2100 1999 7202 0019 6450",470,940,200,400,300,150]
[5,"IV Rallye Rías Altas Histórico","CLUB RALLYE RIAS ALTAS","C/ Parroquia de Guísamo, Parcela A2, Nave 7","15165","BERGONDO","A CORUÑA","676 857 909",null,"inscripciones@rallyeriasaltas.com","ES43 0182 4655 7702 0158 5742",470,940,200,400,300,150]
[6,"XXII Rallye Primeras Nieves","ESCUDERÍA GRANADA 49.9","C/ Albahaca 1, 5º K","18006","GRANADA","GRANADA","633 279 910",null,"clubdeportivo.egr49.9@gmail.com","ES38 3023 0114 2563 0340 4500",null,null,null,null,null,null,1,"Num_cuenta"]
[7,"48 Rally de la Vendimia","MOTOR CLUB ALMENDRALEJO","C/ Bailen nº 33","06200","ALMENDRALEJO","BADAJOZ","608 920 351",null,"rallyedelavendimia@gmail.com","ES02 0182 0387 1102 0163 4916",null,null,null,null,null,null,false,"Auxiliar",{"$f":"IF(Blanco=TRUE,FALSE,IF(Auxiliar=TRUE,#N/A,FALSE))","v":false}]
[null,null,null,null,null,null,null,null,null,null,null,null,null,null,null,null,null,1,"HabilitarCC",{"$f":"IF(Blanco=TRUE,FALSE,IF(Shakedown=TRUE,#N/A,FALSE))","v":false},{"$f":"IF(Blanco=TRUE,\"Desactive la casilla para mostrarlos e imprimirlos\",\"Active la casilla para imprimir un Boletín de Inscripción vacío\")","v":"Active la casilla para imprimir un Boletín de Inscripción vacío"}]
[null,null,null,null,null,null,null,null,null,null," ",null,null,null,null,null,null,false,"Trofeo2",{"$f":"IF(Blanco=TRUE,FALSE,IF(Trofeo2=TRUE,#N/A,FALSE))","v":false}]
[null,null,null,null,null,null,null,null,null,null,null,null,null,null,null,null,null,false,"Trofeo3",{"$f":"IF(Blanco=TRUE,FALSE,IF(Trofeo3=TRUE,#N/A,FALSE))","v":false}]
[1,{"$f":"IF(Campeonato>6,\"Seleccionar previamente el Campeonato al que se inscribe\",\"Seleccionar el tipo de vehículo de la lista desplegable\")","v":"Seleccionar el tipo de vehículo de la lista desplegable"},null,null,null,null,null,null,null,null,null,null,null,null,null,null,null,false,"Trofeo4",{"$f":"IF(Blanco=TRUE,FALSE,IF(Trofeo4=TRUE,#N/A,FALSE))","v":false}]
[2,{"$f":"IF(Campeonato=1,B33,IF(Campeonato=2,B44,IF(Campeonato=3,B55,IF(Campeonato=4,B66,IF(Campeonato=5,B77,IF(Campeonato=6,B88,\"\"))))))","v":"Gr. 1 homologado hasta el 31.12.1981"},1,"<-- Selección categoría",null,null,null,null,null,null,null,null,null,null,null,null,null,false,"Trofeo5",{"$f":"IF(Blanco=TRUE,FALSE,IF(Trofeo5=TRUE,#N/A,FALSE))","v":false}]
[3,"Gr. 2 homologado hasta el 31.12.1981",{"$f":"IF(Seleccion=1,VLOOKUP(Seleccion,A13:B24,2),IF(Campeonato=1,VLOOKUP(Seleccion,TablaVelocidad,3),IF(Campeonato<6,VLOOKUP(Seleccion,TablaRegularidad,3),\"\")))","v":"Seleccionar el tipo de vehículo de la lista desplegable"},null,null,null,null,null,null,null,null,null,null,null,null,null,null,false,"Trofeo6",{"$f":"IF(Blanco=TRUE,FALSE,IF(Trofeo6=TRUE,#N/A,FALSE))","v":false}]
[4,"Gr. 3 homologado hasta el 31.12.1981",{"$f":"IF(Seleccion=1,\"\",IF(Campeonato=1,IF(Seleccion<11,\"Campeonato de España de Velocidad\",IF(Seleccion=11,\"---\",\"Campeonato Autonómico\")),IF(Categoria=\"Categoría 2\",\"Campeonato de España de Regularidad\",IF(Campeonato=3,\"Campeonato de España de Regularidad\",\"Copa de España de Regularidad\"))))","v":""},null,null,null,null,null,null,null,null,null,null,null,null,null,null,false,"Trofeo7",{"$f":"IF(Blanco=TRUE,FALSE,IF(Trofeo7=TRUE,#N/A,FALSE))","v":false}]
[5,"Gr. 4 homologado hasta el 31.12.1981",null,null,null,null,null,null,null,null,null,null,null,null,null,null,null,false,"Trofeo8",{"$f":"IF(Blanco=TRUE,FALSE,IF(Trofeo8=TRUE,#N/A,FALSE))","v":false}]
[6,"Gr. 5",{"$f":"VLOOKUP(Seleccion,A13:B22,2,0)","v":"Seleccionar el tipo de vehículo de la lista desplegable"},"<-- Para imprimir en Boletín la categoría o grupo",null,null,null,null,null,null,null,null,null,null,null,null,null,false,"Trofeo9",{"$f":"IF(Blanco=TRUE,FALSE,IF(Trofeo9=TRUE,#N/A,FALSE))","v":false}]
[7,"---",null,null,null,null,null,null,null,null,null,null,null,null,null,null,null,false,"Trofeo10",{"$f":"IF(Blanco=TRUE,FALSE,IF(Trofeo10=TRUE,#N/A,FALSE))","v":false}]
[8,"---",null,{"$f":"SUM(D21:D30)","v":{"$error":"#REF!"}},null,null,null,null,null,null,null,null,null,null,null,null,null,true,"España",{"$f":"IF(Blanco=TRUE,FALSE,IF(España=TRUE,#N/A,FALSE))","v":{"$error":"#N/A"}}]
[9,"---","Clase Velocidad",{"$f":"IF(' Boletín de Inscripción '!C69=\"\",0,1)","v":0},"Marca",null,null,null,null,null,null,null,null,null,null,null,null,{"$f":"IF(C14>6,TRUE,FALSE)","v":false},"Autonomico",{"$f":"IF(C14>6,#N/A,FALSE)","v":false}]
[10,"---",{"$f":"IF(AND(Campeonato=1,Seleccion=2),#REF!,IF(AND(Campeonato=1,Seleccion=3),#REF!,IF(AND(Campeonato=1,Seleccion=4),#REF!,IF(AND(Campeonato=2,Seleccion=2),#REF!,IF(AND(Campeonato=2,Seleccion=3),#REF!,IF(AND(Campeonato=2,Seleccion=4),#REF!,#REF!))))))","v":{"$error":"#REF!"}},{"$f":"IF(' Boletín de Inscripción '!I69=\"\",0,1)","v":0},"Modelo",null,null,null,null,null,null,null,null,null,null,null,null,false,"Clasicos",{"$f":"IF(Blanco=TRUE,FALSE,IF(Clasicos=TRUE,#N/A,FALSE))","v":false}]
[null,null,"Clase Regularidad",{"$f":"IF(' Boletín de Inscripción '!C72=\"\",0,1)","v":0},"Cilindrada",null,null,null,null,null,null,null,null,null,null,null,null,false,"Blanco"]
[null,null,{"$f":"IF(AND(OR(Campeonato=4,Campeonato=5),OR(Seleccion=2,Seleccion=3,Seleccion=4,Seleccion=5,Seleccion=6,Seleccion=7,Seleccion=8,Seleccion=9)),#REF!,\"---\")","v":"---"},{"$f":"IF(' Boletín de Inscripción '!C75=\"\",0,1)","v":0},"Matricula",null,null,null,null,null,null,null,null,null,null,null,null,false,"IVA"]
[null,null,null,{"$f":"IF(AñoHomologacion=\"\",0,1)","v":0},"AñoHomologacion",null,null,null,null,null,null,null,null,null,null,null,null,1,"Efectivo"]
[null,null,null,{"$f":"IF(AñoBoletin=\"\",0,1)","v":0},"AñoEspecificaciones",null,null,null,null,null,null,null,null,null,null,null,null,1,"Turbo"]
[null,null,"AprobacionCC",{"$f":"IF(Campeonato>1,1,IF(' Boletín de Inscripción '!C78=\"\",0,1))","v":0},"FichaHomologacion",null,null,null,null,null,null,null,null,null,null,null,null,{"$f":"IF(AND(Turbo=1,AñoBoletin>1985),0,1)","v":1},"Turbo_correcto"]
[null,null,{"$f":"IF(Campeonato=3,TRUE,FALSE)","v":false},{"$f":"IF(PASAPORTE=FALSE,1,IF(' Boletín de Inscripción '!G78=\"\",0,1))","v":0},"Pasaporte"]
[null,null,null,{"$f":"IF(C16=\"\",0,1)","v":0},"Campeonato"]
[null,null,null,{"$f":"IF(Categoria=\" \",0,IF(EsError=FALSE,1,0))","v":{"$error":"#REF!"}},"Categoria"]
[]
["Vehículos admitidos en CAMPEONATO DE HISTÓRICOS PRE 81"]
[0,"Gr. 1 homologado hasta el 31.12.1981","Gr. 1, 2, 3 o 4 homologado hasta 31.12.1969"]
[1,"Gr. 2 homologado hasta el 31.12.1981","Gr. 1, 2, 3 o 4 homologado entre 01.01.1970 y 31.12.1975"]
[2,"Gr. 3 homologado hasta el 31.12.1981","Gr. 1, 2, 3 o 4 homologado entre 01.01.1976 y 31.12.1981"]
[3,"Gr. 4 homologado hasta el 31.12.1981","---"]
[4,"Gr. 5","---"]
[5,"---","---"]
[6,"---","---"]
[7,"---","---"]
[8,"---","---"]
[]
["Vehículos admitidos en CAMPEONATO DE HISTÓRICOS PRE 90"]
[0,"Gr. A homologado entre 01.01.1982 y 31.12.1990","Gr. A homologado entre 01.01.1982 y 31.12.1990"]
[1,"Gr. N homologado entre 01.01.1982 y 31.12.1990","Gr. B homologado entre 01.01.1982 y 31.12.1990"]
[2,"Gr. B homologado entre 01.01.1982 y 31.12.1990","Gr. N homologado entre 01.01.1982 y 31.12.1990"]
[3,"---","---"]
[4,"---","---"]
[5,"---","---"]
[6,"---","---"]
[7,"---","---"]
[8,"---","---"]
[]
["Vehículos admitidos en TROFEO CAT. 5"]
[0,"No conforme a especificaciones época","No conforme a especificaciones época"]
[1,"---","---"]
[2,"---","---"]
[3,"---","---"]
[4,"---","---"]
[5,"---","---"]
[6,"---","---"]
[7,"---","---"]
[8,"---","---"]
[]
["Vehículos admitidos en TROFEO YOUNGTIMERS"]
[0,"Gr. A/N homologados entre el 01.01.1991 y el 31.12.2000","Grupo 1"]
[1,"---","Grupo 2"]
[2,"---","Grupo 3"]
[3,"---","Grupo 4"]
[4,"---","Grupo 5"]
[5,"---","---"]
[6,"---","---"]
[7,"---","---"]
[8,"---","---"]
[]
["Vehículos admitidos en CAMPEONATO RS (PRE81 y PRE90)"]
[0,"Gr. 1 homologado hasta el 31.12.1981","Grupo A"]
[1,"Gr. 2 homologado hasta el 31.12.1981","Grupo N"]
[2,"Gr. 3 homologado hasta el 31.12.1981","Grupo B"]
[3,"Gr. 4 homologado hasta el 31.12.1981","---"]
[4,"Gr. A homologado entre 01.01.1982 y 31.12.1990","---"]
[5,"Gr. N homologado entre 01.01.1982 y 31.12.1990","---"]
[6,"Gr. B homologado entre 01.01.1982 y 31.12.1990","---"]
[7,"---","---"]
[8,"---","---"]
[]
["Vehículos admitidos en CAMPEONATO REGULARIDAD"]
[0,"Gr. 1 homologado hasta el 31.12.1981","Grupo 1"]
[1,"Gr. 2 homologado hasta el 31.12.1981","Grupo 2"]
[2,"Gr. 3 homologado hasta el 31.12.1981","Grupo 3"]
[3,"Gr. 4 homologado hasta el 31.12.1981","Grupo 4"]
[4,"Gr. A homologado entre 01.01.1982 y 31.12.1990","Grupo 5"]
[5,"Gr. N homologado entre 01.01.1982 y 31.12.1990","Grupo A"]
[6,"Gr. B homologado entre 01.01.1982 y 31.12.1990","Grupo N"]
[7,"---","Grupo B"]
[8,"---","---"]
[]
[]
[]
[]
[]
[]
[]
[]
[]
[null,null,null,null,null,null,null,null,null,{"$f":"LEN(J110)","v":1}]
[null,{"$f":"LEN(Inicio)","v":0},"APE1CONCURSANTE",{"$f":"IF($B$114>0,1,B107)","v":0}]
[null,{"$f":"LEN(' Boletín de Inscripción '!L39)","v":0},"APE2 CONCURSANTE",{"$f":"IF($B$114>0,1,B108)","v":0},null,null,null,{"$f":"LEN(H110)","v":1},null,null,{"$f":"LEN(K110)","v":1}]
[null,{"$f":"LEN(' Boletín de Inscripción '!V39)","v":0},"NOMCONCURSANTE",{"$f":"IF($B$114>0,1,B109)","v":0},null,"TABLA AUTONOMIAS CONCURSANTE",null,null,"TABLA AUTONOMIAS PILOTO",null,null,"TABLA AUTONOMIAS coPILOTO"]
[null,{"$f":"LEN(Concursante_NIF)","v":0},"NIFCONCURSANTE",{"$f":"B110","v":0},null,1,{"$f":"IF(Indice_Pais_Concursante=62,F323,\"  \")","v":" "}," ",1,{"$f":"IF(Indice_Pais_Piloto=62,F323,\"  \")","v":" "},{"$f":"IF(Indice_Pais_Piloto=62,G323,\"  \")","v":" "},1,{"$f":"IF(Indice_Pais_Copiloto=62,F323,\"  \")","v":" "},{"$f":"IF(Indice_Pais_Copiloto=62,G323,\"  \")","v":" "}]
[null,{"$f":"LEN(Concursante_Licencia)","v":0},"LICCONCURSANTE",{"$f":"B111","v":0},null,2,"AN","Andalucía",2,"AN","Andalucía",2,"AN","Andalucía"]
[null,{"$f":"LEN(' Boletín de Inscripción '!D48)","v":0},"MOVILCONCURSANTE",{"$f":"IF(B113>0,1,B112)","v":0},null,3,"AR","Aragón",3,"AR","Aragón",3,"AR","Aragón"]
[null,{"$f":"LEN(' Boletín de Inscripción '!I48)","v":0},"FIJOCONCURSANTE",{"$f":"IF(B112>0,1,B113)","v":0},null,4,"AS","Asturias",4,"AS","Asturias",4,"AS","Asturias"]
[null,{"$f":"LEN(' Boletín de Inscripción '!D42)","v":0},"DENOMCONCURSANTE",{"$f":"IF($B$107>0,1,B114)","v":0},{"$f":"LEN(H110)","v":1},5,"IB","Baleares",5,"IB","Baleares",5,"IB","Baleares"]
[null,{"$f":"LEN(' Boletín de Inscripción '!Q42)","v":0},"REPRESCONCURSANTE",{"$f":"IF($B$107>0,1,B115)","v":0},null,6,"CN","Canarias",6,"CN","Canarias",6,"CN","Canarias"]
[null,{"$f":"LEN(' Boletín de Inscripción '!D50)","v":0},"APE1PILOTO",{"$f":"B116","v":0},null,7,"CB","Cantabria",7,"CB","Cantabria",7,"CB","Cantabria"]
[null,{"$f":"LEN(' Boletín de Inscripción '!L50)","v":0},"APE2PILOTO",{"$f":"B117","v":0},null,8,"CM","Castilla-La Mancha",8,"CM","Castilla-La Mancha",8,"CM","Castilla-La Mancha"]
[null,{"$f":"LEN(' Boletín de Inscripción '!V50)","v":0},"NOMPILOTO",{"$f":"B118","v":0},null,9,"CL","Castilla-León",9,"CL","Castilla-León",9,"CL","Castilla-León"]
[null,{"$f":"LEN(Piloto_NIF)","v":0},"NIFPILOTO",{"$f":"B119","v":0},null,10,"CT","Cataluña",10,"CT","Cataluña",10,"CT","Cataluña"]
[null,{"$f":"LEN(Piloto_Licencia)","v":0},"LICPILOTO",{"$f":"B120","v":0},null,11,"CE","Ceuta",11,"CE","Ceuta",11,"CE","Ceuta"]
[null,{"$f":"LEN(' Boletín de Inscripción '!D56)","v":0},"MOVILPILOTO",{"$f":"IF(B122>0,1,B121)","v":0},null,12,"EX","Extremadura",12,"EX","Extremadura",12,"EX","Extremadura"]
[null,{"$f":"LEN(' Boletín de Inscripción '!I56)","v":0},"FIJOPILOTO",{"$f":"IF(B121>0,1,B122)","v":0},null,13,"GA","Galicia",13,"GA","Galicia",13,"GA","Galicia"]
[null,{"$f":"LEN(' Boletín de Inscripción '!D58)","v":0},"APE1COPILOTO",{"$f":"B123","v":0},null,14,"RI","La Rioja",14,"RI","La Rioja",14,"RI","La Rioja"]
[null,{"$f":"LEN(' Boletín de Inscripción '!L58)","v":0},"APE2COPILOTO",{"$f":"B124","v":0},null,15,"MD","Madrid",15,"MD","Madrid",15,"MD","Madrid"]
[null,{"$f":"LEN(' Boletín de Inscripción '!V58)","v":0},"NOMCOPILOTO",{"$f":"B125","v":0},null,16,"ML","Melilla",16,"ML","Melilla",16,"ML","Melilla"]
[null,{"$f":"LEN(Copiloto_NIF)","v":0},"NIFCOPILOTO",{"$f":"B126","v":0},null,17,"MC","Murcia",17,"MC","Murcia",17,"MC","Murcia"]
[null,{"$f":"LEN(Copiloto_Licencia)","v":0},"LICCOPILOTO",{"$f":"B127","v":0},null,18,"NC","Navarra",18,"NC","Navarra",18,"NC","Navarra"]
[null,{"$f":"LEN(' Boletín de Inscripción '!D64)","v":0},"MOVILCOPILOTO",{"$f":"IF(B129>0,1,B128)","v":0},null,19,"PV","País Vasco",19,"PV","País Vasco",19,"PV","País Vasco"]
[null,{"$f":"LEN(' Boletín de Inscripción '!I64)","v":0},"FIJOCOPILOTO",{"$f":"IF(B128>0,1,B129)","v":0},null,20,"VC","Valencia",20,"VC","Valencia",20,"VC","Valencia"]
[null,{"$f":"LEN(' Boletín de Inscripción '!C69)","v":0},"MARCA",{"$f":"B130","v":0}]
[null,{"$f":"LEN(' Boletín de Inscripción '!I69)","v":0},"MODELO",0]
[null,{"$f":"LEN(' Boletín de Inscripción '!C72)","v":0},"CILINDRADA",0]
[null,{"$f":"LEN(' Boletín de Inscripción '!C75)","v":0},"MATRICULA",0,null,1,""]
[null,{"$f":"LEN(AñoHomologacion)","v":0},"AÑOHOMOLOGACION",0,null,2,"Afganistán",4,"AF","AFG "]
[null,{"$f":"LEN(AñoBoletin)","v":0},"AÑOESPECIFICACIONES",0,null,3,"Albania",8,"AL","ALB "]
[null,{"$f":"IF(OR(Campeonato>3),1,LEN(' Boletín de Inscripción '!C78))","v":0},"FICHAHOMOLOGACION",{"$f":"B136","v":0},null,4,"Alemania",276,"DE","DEU "]
[null,{"$f":"IF(OR(Campeonato=3,Campeonato=4),1,LEN(' Boletín de Inscripción '!G78))","v":0},"PASAPORTE",{"$f":"B137","v":0},null,5,"Andorra",20,"AD","AND "]
[null,{"$f":"LEN(NombreCampeonato)-1","v":40},"NOMBRECAMPEONATO",{"$f":"B138","v":40},null,6,"Angola",24,"AO","AGO "]
[null,{"$f":"LEN(TipoVehiculo)","v":55},"TIPOVEHICULO",{"$f":"B139","v":55},null,7,"Anguilla",660,"AI","AIA "]
[null,null,null,{"$f":"COUNTIF(OBLIGATORIOS,0)+COUNTIF(NUEVOSOBLIGATORIOS,0)","v":38},null,8,"Antigua Y Barbuda",28,"AG","ATG "]
["Tabla de certámenes convocados",null,null,null,null,9,"Antillas Holandesas",530,"AN","ANT "]
[1,"Campeonato de España de Históricos Pre 81",{"$f":"VLOOKUP(Campeonato,A142:B147,2)","v":"Campeonato de España de Históricos Pre 81"},null,null,10,"Arabia Saudita",682,"SA","SAU "]
[2,"Campeonato de España de Históricos Pre 90",null,null,null,11,"Argelia",12,"DZ","DZA "]
[3,"Trofeo de España Cat. 5",null,null,null,12,"Argentina",32,"AR","ARG "]
[4,"Trofeo de España Youngtimers",null,null,null,13,"Armenia",51,"AM","ARM "]
[5,"Campeonato de España de Regularidad Sport (Pre81 y Pre90)",null,null,null,14,"Aruba",533,"AW","ABW "]
[6,"Campeonato de España de Regularidad (Pre81 y Pre90)",null,null,null,15,"Australia",36,"AU","AUS "]
[7,null,null,null,null,16,"Austria",40,"AT","AUT "]
[null,{"$f":"LEN(' Boletín de Inscripción '!N46)","v":6},"PAISCONCURSANTE",{"$f":"B149","v":6},null,17,"Azerbaiján",31,"AZ","AZE "]
[null,{"$f":"LEN(Concursante_Copia)","v":0},"COPIACONCURSANTE",{"$f":"IF(B107>0,1,B150)","v":0},null,18,"Bahamas",44,"BS","BHS "]
[null,{"$f":"LEN(email_competidor)","v":0},"EMAILCOMPETIDOR",{"$f":"B151","v":0},null,19,"Bahrein",48,"BH","BHR "]
[null,{"$f":"LEN(Piloto_Provincia)","v":0},"PROVINCIAPILOTO",{"$f":"B152","v":0},null,20,"Bangladesh",50,"BD","BGD "]
[null,{"$f":"LEN(Piloto_Pais)","v":6},"PAISPILOTO",6,null,21,"Barbados",52,"BB","BRB "]
[null,{"$f":"LEN(email_piloto)","v":0},"EMAILPILOTO",{"$f":"B154","v":0},null,22,"Belarús",112,"BY","BLR "]
[null,{"$f":"LEN(Copiloto_Provincia)","v":0},"PROVINCIACOPILOTO",0,null,23,"Bélgica",56,"BE","BEL "]
[null,{"$f":"LEN(Copiloto_Pais)","v":6},"PAISCOPILOTO",6,null,24,"Belice",84,"BZ","BLZ "]
[null,{"$f":"LEN(email_copiloto)","v":0},"EMAILCOPILOTO",{"$f":"B157","v":0},null,25,"Bermudas",60,"BM","BMU "]
[null,{"$f":"LEN(' Boletín de Inscripción '!D46)","v":0},"PROVINCIACONCURSANTE",0,null,26,"Bolivia",68,"BO","BOL "]
[null,{"$f":"IF(Concursante_CCAA=\" \",0,LEN(Concursante_CCAA))","v":9},"CCAACONCURSANTE",9,null,27,"Bosnia Y Herzegovina",70,"BA","BIH "]
[null,{"$f":"IF(Piloto_CCAA=\" \",0,LEN(Piloto_CCAA))","v":9},"CCAAPILOTO",9,null,28,"Botswana",72,"BW","BWA "]
[null,{"$f":"IF(Copiloto_CCAA=\" \",0,LEN(Copiloto_CCAA))","v":9},"CCAACOPILOTO",9,null,29,"Brasil",76,"BR","BRA "]
[null,null,null,null,null,30,"Bulgaria",100,"BG","BGR "]
[null,null,null,null,null,31,"Burkina Faso",854,"BF","BFA "]
[null,null,null,null,null,32,"Burundi",108,"BI","BDI "]
[null,null,null,null,null,33,"Bután",64,"BT","BTN "]
[null,null,null,null,null,34,"Cabo Verde",132,"CV","CPV "]
[null,null,null,null,null,35,"Caimán, Islas",136,"KY","CYM "]
[null,null,null,null,null,36,"Camboya",116,"KH","KHM "]
[null,null,null,null,null,37,"Camerún",120,"CM","CMR "]
[null,null,null,null,null,38,"Canadá",124,"CA","CAN "]
[null,null,null,null,null,39,"Chile",152,"CL","CHL "]
[null,null,null,null,null,40,"China",156,"CN","CHN "]
[null,null,null,null,null,41,"Chipre",196,"CY","CYP "]
[null,null,null,null,null,42,"Colombia",170,"CO","COL "]
[null,null,null,null,null,43,"Comoras",174,"KM","COM "]
[null,null,null,null,null,44,"Congo",178,"CG","COG "]
[null,null,null,null,null,45,"Congo",180,"CD","COD "]
[null,null,null,null,null,46,"Cook, Islas",184,"CK","COK "]
[null,null,null,null,null,47,"Corea  Del Sur",410,"KR","KOR "]
[null,null,null,null,null,48,"Corea Del Norte",408,"KP","PRK "]
[null,null,null,null,null,49,"Costa De Marfil",384,"CI","CIV "]
[null,null,null,null,null,50,"Costa Rica",188,"CR","CRI "]
[null,null,null,null,null,51,"Croacia",191,"HR","HRV "]
[null,null,null,null,null,52,"Cuba",192,"CU","CUB "]
[null,null,null,null,null,53,"Dinamarca",208,"DK","DNK "]
[null,null,null,null,null,54,"Dominica",212,"DM","DMA "]
[null,null,null,null,null,55,"Ecuador",218,"EC","ECU "]
[null,null,null,null,null,56,"Egipto",818,"EG","EGY "]
[null,null,null,null,null,57,"El Salvador",222,"SV","SLV "]
[null,null,null,null,null,58,"Emiratos Árabes",784,"AE","ARE "]
[null,null,null,null,null,59,"Eritrea",232,"ER","ERI "]
[null,null,null,null,null,60,"Eslovaquia",703,"SK","SVK "]
[null,null,null,null,null,61,"Eslovenia",705,"SI","SVN "]
[null,null,null,null,null,62,"España",724,"ES","ESP "]
[null,null,null,null,null,63,"Estados Unidos",840,"US","USA "]
[null,null,null,null,null,64,"Estonia",233,"EE","EST "]
[null,null,null,null,null,65,"Etiopía",231,"ET","ETH "]
[null,null,null,null,null,66,"Fiji",242,"FJ","FJI "]
[null,null,null,null,null,67,"Filipinas",608,"PH","PHL "]
[null,null,null,null,null,68,"Finlandia",246,"FI","FIN "]
[null,null,null,null,null,69,"Francia",250,"FR","FRA "]
[null,null,null,null,null,70,"Gabón",266,"GA","GAB "]
[null,null,null,null,null,71,"Gambia",270,"GM","GMB "]
[null,null,null,null,null,72,"Georgia",268,"GE","GEO "]
[null,null,null,null,null,73,"Ghana",288,"GH","GHA "]
[null,null,null,null,null,74,"Gibraltar",292,"GI","GIB "]
[null,null,null,null,null,75,"Granada",308,"GD","GRD "]
[null,null,null,null,null,76,"Grecia",300,"GR","GRC "]
[null,null,null,null,null,77,"Groenlandia",304,"GL","GRL "]
[null,null,null,null,null,78,"Guatemala",320,"GT","GTM "]
[null,null,null,null,null,79,"Guinea",324,"GN","GIN "]
[null,null,null,null,null,80,"Guinea Ecuatorial",226,"GQ","GNQ "]
[null,null,null,null,null,81,"Guyana",328,"GY","GUY "]
[null,null,null,null,null,82,"Haití",332,"HT","HTI "]
[null,null,null,null,null,83,"Honduras",340,"HN","HND "]
[null,null,null,null,null,84,"Hong Kong",344,"HK","HKG "]
[null,null,null,null,null,85,"Hungría",348,"HU","HUN "]
[null,null,null,null,null,86,"India",356,"IN","IND "]
[null,null,null,null,null,87,"Indonesia",360,"ID","IDN "]
[null,null,null,null,null,88,"Irak",368,"IQ","IRQ "]
[null,null,null,null,null,89,"Irán",364,"IR","IRN "]
[null,null,null,null,null,90,"Irlanda",372,"IE","IRL "]
[null,null,null,null,null,91,"Islandia",352,"IS","ISL "]
[null,null,null,null,null,92,"Islas Feroe",234,"FO","FRO "]
[null,null,null,null,null,93,"Israel",376,"IL","ISR "]
[null,null,null,null,null,94,"Italia",380,"IT","ITA "]
[null,null,null,null,null,95,"Jamaica",388,"JM","JAM "]
[null,null,null,null,null,96,"Japón",392,"JP","JPN "]
[null,null,null,null,null,97,"Jordania",400,"JO","JOR "]
[null,null,null,null,null,98,"Kazajistán",398,"KZ","KAZ "]
[null,null,null,null,null,99,"Kenia",404,"KE","KEN "]
[null,null,null,null,null,100,"Kiribati",296,"KI","KIR "]
[null,null,null,null,null,101,"Kuwait",414,"KW","KWT "]
[null,null,null,null,null,102,"Laos",418,"LA","LAO "]
[null,null,null,null,null,103,"Letonia",428,"LV","LVA "]
[null,null,null,null,null,104,"Líbano",422,"LB","LBN "]
[null,null,null,null,null,105,"Liberia",430,"LR","LBR "]
[null,null,null,null,null,106,"Libia",434,"LY","LBY "]
[null,null,null,null,null,107,"Liechtenstein",438,"LI","LIE "]
[null,null,null,null,null,108,"Lituania",440,"LT","LTU "]
[null,null,null,null,null,109,"Luxemburgo",442,"LU","LUX "]
[null,null,null,null,null,110,"Macao",446,"MO","MAC "]
[null,null,null,null,null,111,"Macedonia",807,"MK","MKD "]
[null,null,null,null,null,112,"Madagascar",450,"MG","MDG "]
[null,null,null,null,null,113,"Malasia",458,"MY","MYS "]
[null,null,null,null,null,114,"Malawi",454,"MW","MWI "]
[null,null,null,null,null,115,"Maldivas",462,"MV","MDV "]
[null,null,null,null,null,116,"Malí",466,"ML","MLI "]
[null,null,null,null,null,117,"Malta",470,"MT","MLT "]
[null,null,null,null,null,118,"Marruecos",504,"MA","MAR "]
[null,null,null,null,null,119,"Martinica",474,"MQ","MTQ "]
[null,null,null,null,null,120,"Mauricio",480,"MU","MUS "]
[null,null,null,null,null,121,"Mauritania",478,"MR","MRT "]
[null,null,null,null,null,122,"México",484,"MX","MEX "]
[null,null,null,null,null,123,"Moldavia",498,"MD","MDA "]
[null,null,null,null,null,124,"Mónaco",492,"MC","MCO "]
[null,null,null,null,null,125,"Mongolia",496,"MN","MNG "]
[null,null,null,null,null,126,"Montserrat",500,"MS","MSR "]
[null,null,null,null,null,127,"Mozambique",508,"MZ","MOZ "]
[null,null,null,null,null,128,"Myanmar",104,"MM","MMR "]
[null,null,null,null,null,129,"Namibia",516,"NA","NAM "]
[null,null,null,null,null,130,"Nepal",524,"NP","NPL "]
[null,null,null,null,null,131,"Nicaragua",558,"NI","NIC "]
[null,null,null,null,null,132,"Níger",562,"NE","NER "]
[null,null,null,null,null,133,"Nigeria",566,"NG","NGA "]
[null,null,null,null,null,134,"Noruega",578,"NO","NOR "]
[null,null,null,null,null,135,"Nueva Zelanda",554,"NZ","NZL "]
[null,null,null,null,null,136,"Omán",512,"OM","OMN "]
[null,null,null,null,null,137,"Países Bajos",528,"NL","NLD "]
[null,null,null,null,null,138,"Pakistán",586,"PK","PAK "]
[null,null,null,null,null,139,"Palestina",275,"PS","PSE "]
[null,null,null,null,null,140,"Panamá",591,"PA","PAN "]
[null,null,null,null,null,141,"Paraguay",600,"PY","PRY "]
[null,null,null,null,null,142,"Perú",604,"PE","PER "]
[null,null,null,null,null,143,"Polonia",616,"PL","POL "]
[null,null,null,null,null,144,"Portugal",620,"PT","PRT "]
[null,null,null,null,null,145,"Puerto Rico",630,"PR","PRI "]
[null,null,null,null,null,146,"Qatar",634,"QA","QAT "]
[null,null,null,null,null,147,"Reino Unido",826,"GB","GBR "]
[null,null,null,null,null,148,"Rep. Centroafricana",140,"CF","CAF "]
[null,null,null,null,null,149,"Rep. Checa",203,"CZ","CZE "]
[null,null,null,null,null,150,"Rep. Dominicana",214,"DO","DOM "]
[null,null,null,null,null,151,"Reunión",638,"RE","REU "]
[null,null,null,null,null,152,"Ruanda",646,"RW","RWA "]
[null,null,null,null,null,153,"Rumania",642,"RO","ROU "]
[null,null,null,null,null,154,"Rusia",643,"RU","RUS "]
[null,null,null,null,null,155,"Sahara Occidental",732,"EH","ESH "]
[null,null,null,null,null,156,"Salomón, Islas",90,"SB","SLB "]
[null,null,null,null,null,157,"Samoa",882,"WS","WSM "]
[null,null,null,null,null,158,"San Marino",674,"SM","SMR "]
[null,null,null,null,null,159,"Santa Sede",336,"VA","VAT "]
[null,null,null,null,null,160,"Senegal",686,"SN","SEN "]
[null,null,null,null,null,161,"Seychelles",690,"SC","SYC "]
[null,null,null,null,null,162,"Sierra Leona",694,"SL","SLE "]
[null,null,null,null,null,163,"Singapur",702,"SG","SGP "]
[null,null,null,null,null,164,"Siria",760,"SY","SYR "]
[null,null,null,null,null,165,"Somalia",706,"SO","SOM "]
[null,null,null,null,null,166,"Sri Lanka",144,"LK","LKA "]
[null,null,null,null,null,167,"Sudáfrica",710,"ZA","ZAF "]
[null,null,null,null,null,168,"Sudán",736,"SD","SDN "]
[null,null,null,null,null,169,"Suecia",752,"SE","SWE "]
[null,null,null,null,null,170,"Suiza",756,"CH","CHE "]
[null,null,null,null,null,171,"Tailandia",764,"TH","THA "]
[null,null,null,null,null,172,"Taiwán",158,"TW","TWN "]
[null,null,null,null,null,173,"Tanzania",834,"TZ","TZA "]
[null,null,null,null,null,174,"Togo",768,"TG","TGO "]
[null,null,null,null,null,175,"Trinidad Y Tobago",780,"TT","TTO "]
[null,null,null,null,null,176,"Tunicia",788,"TN","TUN "]
[null,null,null,null,null,177,"Turquía",792,"TR","TUR "]
[null,null,null,null,null,178,"Ucrania",804,"UA","UKR "]
[null,null,null,null,null,179,"Uganda",800,"UG","UGA "]
[null,null,null,null,null,180,"Uruguay",858,"UY","URY "]
[null,null,null,null,null,181,"Uzbekistán",860,"UZ","UZB "]
[null,null,null,null,null,182,"Venezuela",862,"VE","VEN "]
[null,null,null,null,null,183,"Vietnam",704,"VN","VNM "]
[null,null,null,null,null,184,"Yemen",887,"YE","YEM "]
[null,null,null,null,null,185,"Yugoslavia",891,"YU","YUG "]
[null,null,null,null,null,186,"Zambia",894,"ZM","ZMB "]
[null,null,null,null,null,187,"Zimbabwe",716,"ZW","ZWE "]
[null,null,null,null,null,188,"No Declarados",898,"- - -","- - -"]
[]
[]
[null,null,null,null,null," "," "]
[null,null,null,null,null,"AN","Andalucía"]
[null,null,null,null,null,"AR","Aragón"]
[null,null,null,null,null,"AS","Asturias"]
[null,null,null,null,null,"IB","Baleares"]
[null,null,null,null,null,"CN","Canarias"]
[null,null,null,null,null,"CB","Cantabria"]
[null,null,null,null,null,"CM","Castilla-La Mancha"]
[null,null,null,null,null,"CL","Castilla-León"]
[null,null,null,null,null,"CT","Cataluña"]
[null,null,null,null,null,"CE","Ceuta"]
[null,null,null,null,null,"EX","Extremadura"]
[null,null,null,null,null,"GA","Galicia"]
[null,null,null,null,null,"RI","La Rioja"]
[null,null,null,null,null,"MD","Madrid"]
[null,null,null,null,null,"ML","Melilla"]
[null,null,null,null,null,"MC","Murcia"]
[null,null,null,null,null,"NC","Navarra"]
[null,null,null,null,null,"PV","País Vasco"]
[null,null,null,null,null,"VC","Valencia"]

{"sheet":"Exportacion","index":3,"n_rows":4,"n_cols":21,"rows_kept":4,"cut":false,"hidden":true,"merged":[[2,11,3,11],[2,0,3,0],[2,1,3,1],[2,2,3,2],[2,4,3,4],[0,0,1,0],[0,1,1,1],[0,2,1,2],[0,4,1,4],[2,10,3,10],[0,16,1,16],[0,17,1,17],[0,10,1,10],[0,11,1,11],[0,12,1,12],[0,13,1,13],[0,14,1,14],[0,15,1,15],[2,16,3,16],[2,17,3,17],[2,12,3,12],[2,13,3,13],[2,14,3,14],[2,15,3,15]]}
["Nº","CONCURSANTE","NAC./CCAA","Nº LICENCIA","TELEFONO","PILOTO","NAC./CCAA","LIC.","DNI","TELEFONO","VEHICULO\n(marca y modelo)","CATEGORÍA","CILINDRADA","MATRÍCULA","Nº PASAPORTE FIA O RFEDA\n(solo cat. 1, 2, 3 o 4)","Nº FICHA HOM.\n(solo cat. 1, 2, 3, 4, 5-J1 o 6)","GRUPO A / N\n(solo cat. 5-J1)","APROBACIÓN CC\n(solo cat. 5-J1, 6 o 7)"]
[null,null,null,"COPIA",null,"COPILOTO","NAC./CCAA","LIC.","DNI","TELEFONO"]
[null,{"$f":"IF(Concursante_Ape1<>\"\",PROPER(Concursante_Nombre)&\" \"&Concursante_Ape1,IF(Concursante_Colectivo<>\"\",Concursante_Colectivo,\"\"))","v":""},{"$f":"IF(Concursante_Pais=\"ESPAÑA\",Concursante_Pais&\" / \"&Concursante_CCAA,Concursante_Pais)","v":"España / Andalucía"},{"$f":"IF(Concursante_Licencia<>\"\",UPPER(Concursante_Licencia),\"\")","v":""},{"$f":"IF(Concursante_Telefono<>\"\",Concursante_Telefono,\"\")","v":""},{"$f":"IF(Piloto_Nombre<>\"\",PROPER(Piloto_Nombre)&\" \"&UPPER(Piloto_Ape1)&\" \"&UPPER(Piloto_Ape2),\"\")","v":""},{"$f":"IF(Piloto_Pais=\"ESPAÑA\",Piloto_Pais&\" / \"&Piloto_CCAA,Piloto_Pais)","v":"España / Andalucía"},{"$f":"IF(Piloto_Licencia<>\"\",UPPER(Piloto_Licencia),\"\")","v":""},{"$f":"IF(Piloto_NIF<>\"\",UPPER(Piloto_NIF),\"\")","v":""},{"$f":"IF(Piloto_Telefono<>\"\",Piloto_Telefono,\"\")","v":""},{"$f":"IF(Vehiculo_Marca<>\"\",UPPER(Vehiculo_Marca)&\" \"&UPPER(Vehiculo_Modelo),\"\")","v":""},{"$f":"IF(Campeonato=1,IF(LEFT(Vehiculo_Categoria,9)=\"Categoría\",RIGHT(Vehiculo_Categoria,LEN(Vehiculo_Categoria)-10),\"\"),IF(Campeonato=2,\"CAMPEONATO\",IF(Campeonato=3,\"COPA\",IF(Campeonato=4,\"TROFEO\",\"\"))))","v":""},{"$f":"IF(Vehiculo_Cilindrada<>\"\",Vehiculo_Cilindrada&\" \"&\"cc\",\"\")","v":"0 cc"},{"$f":"IF(Vehiculo_Matricula<>\"\",UPPER(Vehiculo_Matricula),\"\")","v":""},{"$f":"IF(Vehiculo_Pasaporte<>\"\",UPPER(Vehiculo_Pasaporte),\"\")","v":""},{"$f":"IF(Vehiculo_FichaHomo<>\"\",UPPER(Vehiculo_FichaHomo),\"\")","v":""},{"$f":"IF(RIGHT(Vehiculo_Tipo,1)=\"N\",\"N\",IF(RIGHT(Vehiculo_Tipo,1)=\"A\",\"A\",\"\"))","v":""},{"$f":"IF(L3=\"\",\"\",IF(L3=\"5-J1\",IF(Shakedown=1,\"SI\",\"NO\"),IF(L3=\"6\",IF(Shakedown=1,\"SI\",\"NO\"),IF(L3=\"7\",IF(Shakedown=1,\"SI\",\"N\"),\"\"))))","v":""},null,null,{"$f":"Legend","v":2}]
[null,null,null,{"$f":"IF(Concursante_Copia<>\"\",UPPER(Concursante_Copia),\"\")","v":""},null,{"$f":"IF(Copiloto_Nombre<>\"\",PROPER(Copiloto_Nombre)&\" \"&UPPER(Copiloto_Ape1)&\" \"&UPPER(Copiloto_Ape2),\"\")","v":""},{"$f":"IF(Copiloto_Pais=\"ESPAÑA\",Copiloto_Pais&\" / \"&Copiloto_CCAA,Copiloto_Pais)","v":"España / Andalucía"},{"$f":"IF(Copiloto_Licencia<>\"\",UPPER(Copiloto_Licencia),\"\")","v":""},{"$f":"IF(Copiloto_NIF<>\"\",UPPER(Copiloto_NIF),\"\")","v":""},{"$f":"IF(Copiloto_Telefono<>\"\",Copiloto_Telefono,\"\")","v":""}]

{"sheet":"Exp_Historicos","index":4,"n_rows":4,"n_cols":18,"rows_kept":4,"cut":false,"hidden":true,"merged":[[0,17,1,17],[0,0,1,0],[0,1,1,1],[0,2,1,2],[0,4,1,4],[0,10,1,10],[0,11,1,11],[0,12,1,12],[0,13,1,13],[0,14,1,14],[0,15,1,15],[0,16,1,16],[2,17,3,17],[2,0,3,0],[2,1,3,1],[2,2,3,2],[2,4,3,4],[2,10,3,10],[2,11,3,11],[2,12,3,12],[2,13,3,13],[2,14,3,14],[2,15,3,15],[2,16,3,16]]}
["Nº","CONCURSANTE","NAC./CCAA","Nº LICENCIA","TELEFONO","PILOTO","NAC./CCAA","LIC.","DNI","TELEFONO","VEHICULO\n(marca y modelo según FH)","CILINDRADA","CATEGORÍA","PERIODO FIA\n(rellena RFEA)","MATRÍCULA","Nº PASAPORTE FIA O RFEDA\n(solo Gr. 1, 2, 3, 4 o 5)","Nº FICHA HOM.\n(solo cat. 1, 2, 3, 4, 5 o 6)","APROBACIÓN GTH\n(solo Gr. B o cat. 7)"]
[null,null,null,"COPIA",null,"COPILOTO","NAC./CCAA","LIC.","DNI","TELEFONO"]
[null,null,"ESPAÑA/",null,null,null,"ESPAÑA/"]
[null,null,null,null,null,null,"ESPAÑA/"]